bitfinex-derivatives/quotes_BTCF0:USTF0_20241003
["timestamp","ask_amount","ask_price","bid_price","bid_amount"]
[1727963278096,0.3608,60285.0,60281.0,0.16561342]
[1727963278097,0.3608,60285.0,60284.0,0.082953]
[1727963278503,0.3608,60294.0,60288.0,0.082947]
[1727963278709,0.3608,60294.0,60292.0,0.16558146]
[1727963278910,0.3608,60294.0,60292.0,0.29145678]
[1727963279710,0.00948921,60293.0,60292.0,0.29145678]
[1727963279904,0.00948921,60293.0,60292.0,0.29099428]
[1727963280711,0.00948921,60293.0,60292.0,0.39015075]
[1727963280911,0.00948921,60293.0,60292.0,0.44013418]
[1727963281099,0.3608,60308.0,60297.0,0.082934]
[1727963281300,0.3608,60308.0,60307.0,0.16552465]
[1727963281607,0.00184,60317.0,60307.0,0.883721]
[1727963281797,0.3608,60321.0,60316.0,0.44]
[1727963282001,0.3608,60328.0,60316.0,0.44]
[1727963282002,0.3608,60335.0,60320.0,0.082903]
[1727963282204,0.3608,60335.0,60317.0,0.56767091]
[1727963282205,0.3608,60335.0,60332.0,0.082887]
[1727963282407,0.00248726,60340.0,60328.0,0.44]
[1727963282612,0.082882,60336.0,60325.0,0.06603166]
[1727963282900,0.082882,60336.0,60325.0,0.14892766]
[1727963282901,0.082891,60329.0,60325.0,0.14892766]
[1727963283103,0.082891,60329.0,60317.0,0.45985933]
[1727963283104,0.44,60339.0,60324.0,0.06603166]
[1727963283306,0.00248726,60340.0,60319.0,0.06603166]
[1727963283307,0.082896,60325.0,60319.0,0.06603166]
[1727963283504,0.082896,60325.0,60312.0,0.09905933]
[1727963283505,0.3608,60327.0,60312.0,0.09905933]
[1727963283713,0.3608,60327.0,60311.0,0.50603166]
[1727963283903,0.3608,60327.0,60323.0,0.082899]
[1727963284604,0.3608,60327.0,60320.0,0.006]
[1727963284808,0.3608,60327.0,60309.0,0.56]
[1727963284809,0.082902,60321.0,60319.0,0.082904]
[1727963285301,0.082901,60322.0,60319.0,0.082904]
[1727963285910,0.0748,60326.0,60322.0,0.0829]
[1727963286113,0.082902,60321.0,60320.0,0.003]
[1727963286306,0.082902,60322.0,60311.0,0.44]
[1727963286702,0.082899,60323.0,60320.0,0.082902]
[1727963286903,0.0748,60326.0,60325.0,0.082896]
[1727963287108,0.3608,60333.0,60325.0,0.082896]
[1727963287405,0.3608,60342.0,60339.0,0.082877]
[1727963288511,0.3608,60349.0,60339.0,0.082877]
[1727963288512,0.443664,60349.0,60339.0,0.082877]
[1727963288713,0.082865,60348.0,60339.0,0.082877]
[1727963288907,0.014,60340.0,60339.0,0.083877]
[1727963289219,0.014,60340.0,60339.0,0.001]
[1727963289220,0.457676,60340.0,60339.0,0.001]
[1727963289401,0.082894,60327.0,60324.0,0.082897]
[1727963289606,1.912,60340.0,60324.0,0.082897]
[1727963289607,0.082896,60325.0,60324.0,0.082897]
[1727963289803,0.082896,60325.0,60316.0,0.3608]
[1727963289804,0.082898,60324.0,60306.0,0.3608]
[1727963290014,0.3608,60327.0,60306.0,0.3608]
[1727963290219,0.3608,60327.0,60309.0,0.44]
[1727963290414,0.082895,60326.0,60309.0,0.44]
[1727963290713,0.082909,60316.0,60306.0,0.3608]
[1727963290915,0.082909,60316.0,60311.0,0.082915]
[1727963291302,0.082909,60316.0,60307.0,0.08292]
[1727963291505,0.082909,60316.0,60306.0,0.3608]
[1727963292017,0.7216,60316.0,60293.0,0.44]
[1727963292222,0.08293,60301.0,60298.0,0.082933]
[1727963292408,0.08293,60301.0,60293.0,0.44]
[1727963292409,0.0692,60315.0,60293.0,0.44]
[1727963292603,0.0692,60315.0,60298.0,0.44]
[1727963292814,0.082912,60314.0,60308.0,0.082919]
[1727963293116,0.0692,60315.0,60309.0,0.082917]
[1727963293117,0.082916,60311.0,60309.0,0.082917]
[1727963293419,0.082916,60311.0,60291.0,0.082943]
[1727963293420,0.7326,60316.0,60310.0,0.44]
[1727963293717,0.7326,60316.0,60310.0,0.082916]
[1727963293718,0.011,60316.0,60310.0,0.082916]
[1727963293911,0.011,60316.0,60299.0,0.44]
[1727963293912,0.3608,60313.0,60299.0,0.44]
[1727963294113,0.082919,60309.0,60308.0,0.08292]
[1727963294315,0.08292,60308.0,60304.0,0.082924]
[1727963294506,0.08292,60308.0,60300.0,0.44]
[1727963294709,0.3608,60313.0,60298.0,0.3678]
[1727963294710,0.082926,60304.0,60298.0,0.3678]
[1727963294906,0.3608,60313.0,60300.0,0.44]
[1727963295107,0.3608,60313.0,60298.0,0.3678]
[1727963295108,0.3608,60313.0,60312.0,0.082914]
[1727963295419,0.003,60309.0,60308.0,0.52292]
[1727963295614,0.082909,60316.0,60308.0,0.44]
[1727963296015,0.01567008,60325.0,60308.0,0.44]
[1727963296213,0.082919,60309.0,60308.0,0.08292]
[1727963296420,0.007,60313.0,60307.0,0.3608]
[1727963297115,0.082919,60309.0,60307.0,0.44372]
[1727963297623,0.082919,60309.0,60307.0,0.08292]
[1727963297818,0.3608,60310.0,60290.0,0.44]
[1727963298122,0.3608,60310.0,60289.0,0.3608]
[1727963298123,0.082938,60295.0,60291.0,0.082942]
[1727963298816,0.082938,60295.0,60289.0,0.3608]
[1727963299219,0.3608,60310.0,60294.0,0.50504766]
[1727963299419,0.082922,60307.0,60306.0,0.082922]
[1727963299809,0.082922,60307.0,60302.0,0.44]
[1727963299810,0.443718,60310.0,60302.0,0.44]
[1727963300020,0.443718,60310.0,60308.0,0.08292]
[1727963300021,0.082918,60309.0,60308.0,0.08292]
[1727963300323,0.3608,60310.0,60302.0,0.44]
[1727963300324,0.443717,60310.0,60309.0,0.082918]
[1727963300623,0.082896,60326.0,60307.0,0.522921]
[1727963300624,0.082908,60317.0,60307.0,0.522921]
[1727963300921,0.082902,60321.0,60314.0,0.082911]
[1727963301321,0.443711,60315.0,60314.0,0.082911]
[1727963301809,1.4582,60315.0,60297.0,0.3608]
[1727963302013,0.089922,60307.0,60306.0,0.001]
[1727963302227,0.007,60307.0,60306.0,0.523922]
[1727963302519,0.3608,60318.0,60306.0,1.89924]
[1727963302724,0.3608,60318.0,60317.0,0.082907]
[1727963302914,0.001,60315.0,60314.0,0.522911]
[1727963303115,0.082888,60331.0,60314.0,0.522911]
[1727963303116,0.3608,60335.0,60325.0,0.082896]
[1727963303416,0.3608,60335.0,60315.0,0.08291]
[1727963303417,0.3608,60335.0,60334.0,0.082884]
[1727963303623,0.3608,60335.0,60334.0,0.522884]
[1727963303820,0.082867,60347.0,60334.0,1.020124]
[1727963304121,0.3608,60348.0,60347.0,0.082866]
[1727963304418,0.3608,60348.0,60342.0,0.082872]
[1727963304620,0.3608,60348.0,60341.0,0.44]
[1727963304822,0.08534875,60350.0,60341.0,0.44]
[1727963305012,0.00248675,60350.0,60342.0,0.44]
[1727963305209,0.00248675,60350.0,60349.0,0.082863]
[1727963305417,0.00248675,60350.0,60347.0,0.001]
[1727963305616,0.00248675,60350.0,60349.0,0.082863]
[1727963306327,0.00648675,60350.0,60349.0,0.082863]
[1727963307213,0.00648675,60350.0,60347.0,0.3608]
[1727963307214,0.004,60350.0,60347.0,0.3608]
[1727963307415,0.3608,60349.0,60342.0,0.001]
[1727963307618,0.082869,60345.0,60344.0,0.082868]
[1727963307822,0.3608,60349.0,60348.0,0.082865]
[1727963308020,0.3608,60349.0,60337.0,0.52288]
[1727963308323,0.3608,60349.0,60331.0,0.3608]
[1727963308324,0.082874,60342.0,60336.0,0.00248606]
[1727963308527,0.3608,60348.0,60338.0,0.44]
[1727963308714,0.082871,60344.0,60343.0,0.082872]
[1727963309222,0.3608,60348.0,60344.0,0.08287]
[1727963309418,0.8008,60348.0,60336.0,0.00248606]
[1727963309621,0.082875,60341.0,60338.0,0.082878]
[1727963309925,0.8008,60348.0,60336.0,0.00248606]
[1727963309926,0.082866,60347.0,60336.0,0.00248606]
[1727963310114,0.08288,60337.0,60336.0,0.00248606]
[1727963310924,0.44368,60337.0,60336.0,0.00248606]
[1727963311328,0.3608,60337.0,60336.0,0.00248606]
[1727963311525,0.3608,60337.0,60336.0,0.08536706]
[1727963311722,0.3608,60337.0,60336.0,0.09236706]
[1727963312221,0.3608,60348.0,60336.0,0.09236706]
[1727963312527,0.3608,60348.0,60340.0,0.44]
[1727963312825,0.082859,60353.0,60349.0,0.082863]
[1727963313023,0.3608,60360.0,60349.0,0.082863]
[1727963313218,0.3608,60367.0,60359.0,0.08285]
[1727963313414,0.00248595,60369.0,60366.0,0.44]
[1727963313728,0.00248595,60369.0,60368.0,0.082837]
[1727963315626,0.00348595,60369.0,60368.0,0.083837]
[1727963315815,0.001,60369.0,60368.0,0.083837]
[1727963316215,0.01541669,60389.0,60368.0,1.45876]
[1727963316415,0.443617,60384.0,60382.0,0.082817]
[1727963316624,0.3608,60384.0,60383.0,0.082817]
[1727963316819,0.3608,60393.0,60378.0,0.8008]
[1727963317022,0.3608,60393.0,60378.0,0.3608]
[1727963317325,0.08282,60381.0,60379.0,0.082822]
[1727963317730,0.082821,60380.0,60379.0,0.082822]
[1727963318123,0.082822,60379.0,60378.0,0.3608]
[1727963318321,0.443604,60393.0,60378.0,0.8008]
[1727963318632,0.082803,60393.0,60392.0,0.082804]
[1727963318821,0.082808,60390.0,60382.0,0.44]
[1727963319020,0.082808,60390.0,60379.0,0.001]
[1727963319021,0.082818,60384.0,60379.0,0.001]
[1727963319328,0.082801,60395.0,60379.0,0.001]
[1727963319524,0.082816,60384.0,60383.0,0.082816]
[1727963319728,0.082821,60380.0,60379.0,0.001]
[1727963320225,0.082821,60380.0,60370.0,0.082833]
[1727963320226,0.082831,60373.0,60370.0,0.082833]
[1727963320631,0.082836,60369.0,60368.0,0.3608]
[1727963320832,0.082831,60373.0,60365.0,0.08532564]
[1727963321020,0.08284,60366.0,60365.0,0.00248464]
[1727963321224,0.08284,60366.0,60365.0,0.08532564]
[1727963321423,0.44364,60366.0,60365.0,0.00248464]
[1727963322230,0.082851,60359.0,60356.0,0.082854]
[1727963322544,1.04364,60366.0,60349.0,0.44]
[1727963322545,0.082849,60360.0,60358.0,0.082851]
[1727963322828,0.44364,60366.0,60349.0,0.44]
[1727963322829,0.44365,60359.0,60352.0,0.082859]
[1727963323245,0.082862,60350.0,60345.0,0.00248554]
[1727963323425,0.082857,60354.0,60345.0,0.00248554]
[1727963323736,0.082857,60354.0,60353.0,0.082858]
[1727963323918,0.082857,60354.0,60345.0,0.00248554]
[1727963323919,0.082862,60350.0,60348.0,0.082864]
[1727963324228,0.082862,60350.0,60345.0,0.00248554]
[1727963326123,0.082858,60353.0,60345.0,0.01648554]
[1727963326439,0.37896618,60359.0,60345.0,0.01648554]
[1727963326440,0.36328644,60359.0,60345.0,0.45648554]
[1727963326727,0.36328644,60359.0,60345.0,0.01648554]
[1727963326728,0.082867,60346.0,60345.0,0.01648554]
[1727963326930,0.082854,60356.0,60349.0,0.082863]
[1727963327134,0.082854,60356.0,60345.0,0.01648554]
[1727963327135,0.36328644,60359.0,60348.0,0.44]
[1727963327336,0.082859,60352.0,60349.0,0.082863]
[1727963327720,0.082855,60356.0,60350.0,0.082862]
[1727963327925,0.36328644,60359.0,60345.0,0.00248554]
[1727963328128,0.082863,60350.0,60346.0,0.082866]
[1727963328431,0.082863,60350.0,60345.0,0.00248554]
[1727963328432,0.082863,60350.0,60348.0,0.082864]
[1727963328632,0.082867,60346.0,60345.0,0.00248554]
[1727963328939,0.443667,60346.0,60345.0,0.08535454]
[1727963329327,0.3608,60346.0,60345.0,0.08535454]
[1727963329542,0.082867,60347.0,60346.0,0.082867]
[1727963329729,0.082867,60347.0,60345.0,0.00248554]
[1727963330030,0.3608,60351.0,60345.0,0.00248554]
[1727963330031,0.443661,60351.0,60345.0,0.00248554]
[1727963330221,0.443662,60351.0,60345.0,0.00248554]
[1727963330426,0.082867,60347.0,60345.0,0.00248554]
[1727963330623,0.082867,60347.0,60345.0,0.01148554]
[1727963330819,0.082862,60350.0,60348.0,0.082864]
[1727963331020,0.165726,60350.0,60349.0,0.082863]
[1727963331234,0.082862,60350.0,60349.0,0.082863]
[1727963332335,0.3608,60351.0,60350.0,0.082862]
[1727963332725,0.3608,60351.0,60345.0,0.00448554]
[1727963332927,0.082867,60346.0,60345.0,0.00448554]
[1727963333431,0.082867,60346.0,60345.0,0.002]
[1727963333432,1.179987,60346.0,60345.0,0.002]
[1727963333843,0.082869,60345.0,60337.0,0.44]
[1727963334130,0.082869,60345.0,60344.0,0.08287]
[1727963334334,0.001,60350.0,60327.0,0.44]
[1727963334533,0.001,60350.0,60325.0,0.3608]
[1727963334534,0.082884,60334.0,60332.0,0.082886]
[1727963334728,0.082895,60329.0,60324.0,0.00248657]
[1727963334927,0.082896,60326.0,60325.0,0.082896]
[1727963335334,0.082896,60326.0,60324.0,0.00248657]
[1727963335335,0.082895,60329.0,60324.0,0.00248657]
[1727963335531,0.082892,60329.0,60324.0,0.00248657]
[1727963335841,0.082896,60325.0,60324.0,0.00248657]
[1727963336024,0.082896,60325.0,60324.0,0.08538457]
[1727963336534,0.0695,60334.0,60324.0,0.00248657]
[1727963336535,0.08524665,60334.0,60324.0,0.00248657]
[1727963336737,0.08289,60330.0,60329.0,0.08289]
[1727963337537,0.08289,60330.0,60324.0,0.00648657]
[1727963337538,0.08524665,60334.0,60324.0,0.00648657]
[1727963337744,0.082896,60326.0,60325.0,0.082895]
[1727963337927,0.08524665,60334.0,60324.0,0.00648657]
[1727963338130,0.3608,60326.0,60324.0,0.00648657]
[1727963338437,0.3608,60326.0,60325.0,0.082896]
[1727963339425,0.37654665,60334.0,60333.0,0.082885]
[1727963339637,0.3608,60334.0,60333.0,0.082885]
[1727963340541,0.082859,60353.0,60333.0,0.082885]
[1727963340542,0.01522176,60346.0,60345.0,0.082869]
[1727963340747,0.36328644,60359.0,60351.0,0.08286]
[1727963340930,0.36328644,60359.0,60358.0,0.082851]
[1727963341133,0.00248644,60359.0,60358.0,0.082851]
[1727963341636,0.3608,60369.0,60368.0,0.082837]
[1727963341836,0.082823,60379.0,60375.0,0.082826]
[1727963342137,0.3608,60381.0,60364.0,0.3608]
[1727963342138,0.082822,60380.0,60369.0,0.082836]
[1727963342442,0.082822,60380.0,60353.0,0.082857]
[1727963342443,0.3608,60372.0,60363.0,0.082843]
[1727963342646,0.082843,60365.0,60351.0,0.8008]
[1727963342839,0.082843,60365.0,60363.0,0.082844]
[1727963343040,0.3608,60372.0,60362.0,0.44]
[1727963343237,0.3608,60372.0,60351.0,0.44366]
[1727963343238,0.3608,60372.0,60371.0,0.082833]
[1727963343736,0.37626152,60381.0,60367.0,0.522838]
[1727963343952,0.00248537,60392.0,60378.0,0.44]
[1727963344145,0.00248537,60392.0,60391.0,0.082806]
[1727963344338,0.00248537,60392.0,60377.0,0.44]
[1727963344644,0.082809,60389.0,60374.0,0.3608]
[1727963344949,0.08382,60381.0,60377.0,0.082825]
[1727963345130,0.08382,60381.0,60374.0,0.3608]
[1727963345331,0.08382,60381.0,60380.0,0.082821]
[1727963345742,0.08282,60381.0,60380.0,0.082821]
[1727963345943,0.082822,60380.0,60374.0,0.001]
[1727963346143,0.3608,60381.0,60374.0,0.002]
[1727963346332,0.082828,60375.0,60374.0,0.002]
[1727963346536,0.082841,60365.0,60356.0,0.082854]
[1727963346747,0.082843,60364.0,60353.0,0.3608]
[1727963346945,0.082856,60354.0,60353.0,0.3608]
[1727963347139,0.082853,60357.0,60353.0,0.3608]
[1727963347336,0.44,60363.0,60353.0,0.3608]
[1727963347537,0.443656,60355.0,60350.0,0.082861]
[1727963347836,0.443656,60355.0,60339.0,0.082876]
[1727963347837,0.082872,60343.0,60339.0,0.082876]
[1727963348146,0.44,60353.0,60327.0,0.5083]
[1727963348147,0.3608,60342.0,60327.0,0.5083]
[1727963348444,0.3608,60342.0,60325.0,0.00248646]
[1727963348642,0.082881,60337.0,60334.0,0.082884]
[1727963348837,0.3608,60342.0,60339.0,0.014]
[1727963349043,0.3608,60342.0,60341.0,0.082874]
[1727963349245,0.00248672,60351.0,60350.0,0.082862]
[1727963349446,0.00248672,60351.0,60350.0,0.522862]
[1727963350148,0.3608,60353.0,60334.0,0.013]
[1727963350334,0.082873,60343.0,60341.0,0.004]
[1727963350643,0.44,60352.0,60341.0,0.004]
[1727963350847,0.082873,60342.0,60341.0,0.004]
[1727963351348,1.53716,60342.0,60323.0,0.9208]
[1727963351654,0.082891,60329.0,60328.0,0.082892]
[1727963351848,0.082894,60327.0,60323.0,0.443698]
[1727963352147,0.082894,60327.0,60324.0,0.082898]
[1727963352345,0.082895,60326.0,60316.0,0.3608]
[1727963352544,0.082895,60326.0,60325.0,0.01448646]
[1727963353050,0.082898,60325.0,60301.0,0.44]
[1727963353348,0.36296,60326.0,60306.0,0.44]
[1727963353550,0.36296,60326.0,60312.0,0.44]
[1727963353551,0.3608,60326.0,60312.0,0.44]
[1727963353757,0.082906,60319.0,60316.0,0.082908]
[1727963354048,0.3608,60326.0,60299.0,0.3608]
[1727963354049,0.3608,60326.0,60317.0,0.44]
[1727963354244,0.522872,60343.0,60325.0,0.082896]
[1727963354245,0.082892,60328.0,60325.0,0.082896]
[1727963354443,0.004,60326.0,60317.0,0.44]
[1727963354647,0.004,60326.0,60325.0,0.082896]
[1727963354835,0.01,60326.0,60325.0,0.083896]
[1727963355244,0.3608,60339.0,60331.0,0.082888]
[1727963355545,0.3608,60339.0,60322.0,0.3608]
[1727963355546,0.005,60328.0,60327.0,0.082894]
[1727963355756,0.08288,60337.0,60327.0,0.082894]
[1727963355757,0.082892,60329.0,60327.0,0.082894]
[1727963356048,0.082899,60323.0,60322.0,0.0829]
[1727963356250,0.007,60326.0,60324.0,0.082897]
[1727963356455,0.002,60326.0,60314.0,0.44]
[1727963356646,0.002,60326.0,60323.0,0.082898]
[1727963356852,0.002,60326.0,60314.0,0.44]
[1727963357150,0.082902,60322.0,60314.0,0.44]
[1727963357350,0.082903,60321.0,60320.0,0.082903]
[1727963357541,0.082901,60322.0,60321.0,0.082902]
[1727963357743,0.522893,60328.0,60309.0,0.44]
[1727963357943,0.082912,60314.0,60313.0,0.082913]
[1727963358653,0.3608,60317.0,60316.0,0.082909]
[1727963358851,0.3608,60317.0,60309.0,0.44]
[1727963359156,0.082914,60312.0,60299.0,0.3608]
[1727963359347,0.522914,60312.0,60306.0,0.082922]
[1727963359549,0.082914,60312.0,60299.0,0.8008]
[1727963359748,0.001,60314.0,60313.0,0.082913]
[1727963359946,0.083911,60314.0,60313.0,0.006]
[1727963360966,0.001,60314.0,60313.0,0.088913]
[1727963361141,0.001,60314.0,60313.0,0.006]
[1727963361343,0.3618,60317.0,60311.0,0.01248713]
[1727963361546,0.3618,60317.0,60315.0,0.082909]
[1727963361547,0.444707,60317.0,60315.0,0.082909]
[1727963361953,0.001,60317.0,60316.0,0.082909]
[1727963362154,0.082895,60326.0,60314.0,0.08291]
[1727963362353,0.082895,60326.0,60313.0,0.014]
[1727963362354,0.00248785,60327.0,60313.0,0.014]
[1727963362558,0.082906,60318.0,60316.0,0.082908]
[1727963362864,0.00248785,60327.0,60315.0,0.004]
[1727963363047,0.00248785,60327.0,60316.0,0.082908]
[1727963363048,0.001,60317.0,60316.0,0.082908]
[1727963363250,0.00248785,60327.0,60315.0,0.01]
[1727963363450,0.44,60346.0,60324.0,0.44]
[1727963363451,0.3608,60340.0,60324.0,0.44]
[1727963363762,0.3608,60340.0,60323.0,0.3608]
[1727963363763,0.3608,60340.0,60339.0,0.082877]
[1727963364350,0.3608,60340.0,60324.0,0.5114]
[1727963364545,0.3608,60340.0,60337.0,0.082877]
[1727963364546,0.08288,60338.0,60337.0,0.082877]
[1727963364749,0.3608,60340.0,60324.0,0.5114]
[1727963364750,0.3608,60340.0,60324.0,0.594298]
[1727963364969,0.082883,60335.0,60324.0,0.594298]
[1727963365151,0.3668,60340.0,60337.0,0.082877]
[1727963365351,0.3668,60340.0,60324.0,0.0714]
[1727963365352,0.3668,60340.0,60339.0,0.082877]
[1727963365751,0.00248699,60345.0,60344.0,0.08287]
[1727963366055,0.082858,60354.0,60344.0,0.44]
[1727963366247,0.082869,60346.0,60344.0,0.08287]
[1727963366565,0.082857,60354.0,60345.0,0.082869]
[1727963366760,0.082857,60354.0,60348.0,0.082865]
[1727963366958,0.082868,60346.0,60344.0,0.08287]
[1727963367258,0.4325,60358.0,60350.0,0.082861]
[1727963367464,0.082864,60349.0,60347.0,0.082866]
[1727963368055,0.4325,60358.0,60347.0,0.082866]
[1727963368256,0.4325,60358.0,60344.0,0.001]
[1727963368257,0.44,60356.0,60344.0,0.001]
[1727963368461,0.4325,60358.0,60344.0,0.001]
[1727963368462,0.082869,60345.0,60344.0,0.001]
[1727963368762,0.005,60349.0,60335.0,0.3608]
[1727963368952,0.8008,60345.0,60334.0,0.443683]
[1727963369162,0.08287,60344.0,60334.0,0.3608]
[1727963369352,0.082882,60336.0,60334.0,0.443684]
[1727963369549,0.082883,60335.0,60334.0,0.3608]
[1727963369759,0.082871,60344.0,60334.0,0.3608]
[1727963370059,0.08288,60337.0,60336.0,0.082881]
[1727963370452,0.082871,60344.0,60334.0,0.005]
[1727963370453,0.082883,60335.0,60334.0,0.005]
[1727963371065,1.180123,60335.0,60334.0,0.005]
[1727963371270,1.180123,60335.0,60313.0,0.082912]
[1727963371271,0.082913,60314.0,60313.0,0.082912]
[1727963371569,0.082913,60314.0,60300.0,0.8668]
[1727963371570,0.3608,60314.0,60297.0,0.3608]
[1727963371864,0.082916,60311.0,60297.0,0.3608]
[1727963372054,0.3608,60314.0,60297.0,0.3608]
[1727963372055,0.082928,60302.0,60301.0,0.317117]
[1727963372964,0.082928,60302.0,60301.0,0.917117]
[1727963373356,0.3618,60314.0,60301.0,0.917117]
[1727963373357,0.082919,60309.0,60301.0,0.917117]
[1727963373558,0.444712,60314.0,60311.0,0.317117]
[1727963373859,0.082927,60303.0,60301.0,0.6]
[1727963374054,0.082922,60306.0,60302.0,0.317117]
[1727963374260,0.082928,60302.0,60301.0,0.014]
[1727963374458,0.083928,60302.0,60301.0,0.345117]
[1727963375065,0.883728,60302.0,60301.0,0.019]
[1727963375255,0.883728,60302.0,60284.0,0.00248819]
[1727963375256,0.082951,60285.0,60284.0,0.00248819]
[1727963375456,0.082951,60285.0,60284.0,0.31960519]
[1727963375666,0.082959,60280.0,60274.0,0.082965]
[1727963375853,0.082958,60281.0,60270.0,0.082972]
[1727963376055,0.44,60272.0,60267.0,0.6]
[1727963376260,0.082975,60268.0,60267.0,0.317117]
[1727963376464,0.082975,60268.0,60260.0,0.00248922]
[1727963376465,0.3608,60268.0,60260.0,0.00248922]
[1727963376653,0.3608,60268.0,60260.0,1e-08]
[1727963376654,0.883784,60261.0,60260.0,1e-08]
[1727963377471,0.869784,60261.0,60260.0,1e-08]
[1727963377860,0.855784,60261.0,60260.0,1e-08]
[1727963378659,0.856784,60261.0,60260.0,0.01100001]
[1727963378859,0.3618,60261.0,60260.0,0.32811701]
[1727963379159,0.3618,60261.0,60260.0,0.928117]
[1727963379364,0.44,60276.0,60260.0,0.928117]
[1727963379365,0.082967,60274.0,60260.0,1.728917]
[1727963379564,0.3608,60276.0,60270.0,0.082972]
[1727963379767,0.3608,60276.0,60260.0,1.051]
[1727963380067,0.082984,60261.0,60260.0,0.011]
[1727963380270,0.083984,60261.0,60260.0,0.011]
[1727963380573,0.082991,60257.0,60249.0,0.083001]
[1727963380869,0.082991,60257.0,60254.0,0.317117]
[1727963381167,0.083986,60261.0,60256.0,0.317117]
[1727963381367,0.001,60261.0,60259.0,0.317117]
[1727963381567,0.01569553,60268.0,60261.0,0.082984]
[1727963381761,0.082975,60268.0,60267.0,0.317117]
[1727963381963,0.3608,60277.0,60256.0,0.9608]
[1727963381964,0.082968,60273.0,60256.0,0.3608]
[1727963382160,0.082968,60273.0,60271.0,0.317117]
[1727963382566,0.3608,60277.0,60272.0,0.400085]
[1727963382768,0.3608,60277.0,60276.0,0.317117]
[1727963384063,0.3728,60277.0,60276.0,0.317117]
[1727963384266,0.3728,60277.0,60276.0,1.000081]
[1727963384267,0.3146735,60277.0,60276.0,1.000081]
[1727963384567,0.00248978,60281.0,60280.0,0.082958]
[1727963384775,0.00248978,60281.0,60280.0,0.400075]
[1727963384962,0.00248978,60281.0,60280.0,1.000075]
[1727963385159,0.00248978,60281.0,60280.0,1.440075]
[1727963385364,0.082939,60295.0,60290.0,0.082943]
[1727963385565,0.082939,60295.0,60280.0,2.040075]
[1727963385566,0.082929,60302.0,60294.0,0.317117]
[1727963385772,0.3608,60303.0,60302.0,0.082928]
[1727963385968,0.4648,60311.0,60307.0,0.082921]
[1727963386160,0.4648,60311.0,60302.0,0.6]
[1727963386361,0.4648,60311.0,60307.0,0.400038]
[1727963386667,0.00248835,60316.0,60310.0,0.317117]
[1727963386865,0.00248835,60316.0,60315.0,0.400027]
[1727963387380,0.3608,60323.0,60322.0,0.0829]
[1727963387682,0.082886,60333.0,60327.0,0.082893]
[1727963387883,0.082881,60336.0,60330.0,0.400006]
[1727963388069,0.082886,60333.0,60330.0,0.317117]
[1727963388381,0.082888,60332.0,60330.0,0.6]
[1727963388589,0.3608,60340.0,60339.0,0.317117]
[1727963388873,0.3608,60340.0,60330.0,0.6]
[1727963389380,0.08288,60337.0,60336.0,0.317117]
[1727963389675,0.082881,60336.0,60331.0,0.082887]
[1727963389881,0.082881,60336.0,60315.0,0.001]
[1727963389882,0.8008,60332.0,60315.0,0.001]
[1727963390180,0.082888,60331.0,60329.0,0.317117]
[1727963390378,0.082888,60331.0,60330.0,0.001]
[1727963390982,0.3608,60332.0,60316.0,0.56]
[1727963391182,0.3608,60332.0,60327.0,0.317117]
[1727963391183,0.082892,60328.0,60327.0,0.317117]
[1727963391483,0.082895,60327.0,60316.0,0.602]
[1727963391666,0.082895,60327.0,60322.0,0.0829]
[1727963392070,0.082896,60325.0,60324.0,0.317117]
[1727963392680,0.443691,60329.0,60324.0,0.917117]
[1727963392871,0.3608,60329.0,60328.0,0.317117]
[1727963393289,0.01,60331.0,60330.0,0.082889]
[1727963393473,0.01,60331.0,60330.0,1.000006]
[1727963393670,0.082882,60336.0,60331.0,0.082887]
[1727963393881,0.3608,60343.0,60337.0,0.082879]
[1727963393882,0.082875,60341.0,60337.0,0.082879]
[1727963394382,0.082875,60341.0,60340.0,0.317117]
[1727963394775,0.08288,60337.0,60330.0,0.001]
[1727963394978,0.08288,60337.0,60333.0,0.082885]
[1727963395171,0.011,60341.0,60336.0,0.317117]
[1727963395384,0.011,60341.0,60340.0,0.399993]
[1727963395884,0.011,60341.0,60340.0,0.917117]
[1727963396081,0.011,60341.0,60340.0,0.317117]
[1727963396082,0.093874,60341.0,60340.0,0.317117]
[1727963396285,0.107874,60341.0,60340.0,0.917117]
[1727963396480,0.014,60341.0,60340.0,0.917117]
[1727963396682,0.025,60341.0,60340.0,1.000993]
[1727963396988,0.019,60341.0,60340.0,1.000993]
[1727963397186,0.00248706,60350.0,60349.0,0.082863]
[1727963397382,0.00248706,60350.0,60349.0,0.39998]
[1727963397583,0.00248706,60350.0,60349.0,0.917117]
[1727963397882,0.002,60341.0,60340.0,0.008]
[1727963398074,0.002,60341.0,60340.0,0.690876]
[1727963398271,0.002,60341.0,60340.0,1.007993]
[1727963398493,0.001,60341.0,60340.0,0.999993]
[1727963398977,0.083874,60341.0,60340.0,0.917117]
[1727963399283,0.001,60341.0,60340.0,0.999993]
[1727963399583,0.01248706,60350.0,60344.0,0.082869]
[1727963399780,0.082869,60345.0,60344.0,0.082869]
[1727963399984,0.082869,60345.0,60344.0,0.682869]
[1727963400184,0.00748706,60350.0,60344.0,0.917117]
[1727963400377,0.00248706,60350.0,60346.0,0.317117]
[1727963400588,0.082874,60341.0,60340.0,0.001]
[1727963401087,0.082874,60341.0,60340.0,0.318117]
[1727963401280,0.443674,60341.0,60340.0,0.317117]